fUST/lending_fUST_20250221
["ID","MTS","AMOUNT","RATE_DAILY","PERIOD"]
[353908362,1740128738576,-1389.74,0.00013945,2]
[353908363,1740128738596,-780.09,0.00013945,2]
[353908364,1740128738617,-633.01,0.00013945,2]
[353908365,1740128738638,-500.0,0.00013945,2]
[353908366,1740128738659,-500.0,0.00013945,2]
[353908367,1740128738679,-500.0,0.00013945,2]
[353908368,1740128738700,-516.36,0.00013945,2]
[353908369,1740128738720,-8990.31213656,0.00013945,4]
[353908370,1740128738742,-11701.41,0.00013945,2]
[353908371,1740128738763,-792.72,0.00013945,2]
[353908372,1740128738783,-1331.03,0.00013945,2]
[353908373,1740128738804,-500.0,0.00013945,2]
[353908374,1740128738824,-636.24,0.00013945,2]
[353908375,1740128738845,-2382.34,0.00013945,2]
[353908376,1740128738865,-500.0,0.00013945,2]
[353908377,1740128738885,-500.0,0.00013945,2]
[353908378,1740128738906,-4762.24,0.00013945,2]
[353908379,1740128738926,-500.0,0.00013945,2]
[353908380,1740128738947,-1649.32,0.00013945,2]
[353908381,1740128738966,-500.0,0.00013972,2]
[353908382,1740128738986,-420.0,0.00013973,2]
[353908383,1740128739008,-1000.0,0.00014,4]
[353908384,1740128739029,-355.2534587,0.00014,2]
[353908385,1740128739050,-355.2534587,0.00014,2]
[353908386,1740128739071,-355.2534587,0.00014,2]
[353908387,1740128739094,-713.2550942,0.00014,2]
[353908388,1740128739114,-574.5410067,0.00014027,2]
[353908389,1740128739134,-408.43160238,0.00014027,2]
[353908390,1740128739154,-214.15381799,0.00014027,2]
[353908391,1740128739173,-500.0,0.00014027,2]
[353908392,1740128739192,-500.0,0.00014027,2]
[353908393,1740128739212,-697.03,0.00014027,2]
[353908394,1740128739233,-776.14,0.00014027,2]
[353908395,1740128739256,-513.11,0.00014027,2]
[353908396,1740128739276,-558.68,0.00014027,2]
[353908397,1740128739297,-586.63,0.00014027,2]
[353908398,1740128739318,-500.0,0.00014027,2]
[353908399,1740128739339,-500.0,0.00014027,2]
[353908400,1740128739361,-1304.26,0.00014027,2]
[353908401,1740128739384,-500.0,0.00014027,2]
[353908402,1740128739406,-500.0,0.00014027,2]
[353908403,1740128739427,-715.68,0.00014027,2]
[353908404,1740128739447,-2622.22,0.00014027,2]
[353908405,1740128739468,-500.0,0.00014027,2]
[353908406,1740128739491,-593.74,0.00014027,2]
[353908407,1740128739512,-500.0,0.00014027,2]
[353908408,1740128739532,-642.78640849,0.00014027,2]
[353908409,1740128739554,-3365.24,0.00014027,2]
[353908410,1740128739578,-693.2,0.00014027,2]
[353908411,1740128739598,-500.0,0.00014027,2]
[353908412,1740128739622,-6309.07,0.00014027,2]
[353908413,1740128739644,-1265.24,0.00014027,2]
[353908414,1740128739666,-1389.74,0.00014027,2]
[353908415,1740128739687,-780.09,0.00014027,2]
[353908416,1740128739708,-633.01,0.00014027,2]
[353908417,1740128739728,-500.0,0.00014027,2]
[353908418,1740128739750,-500.0,0.00014027,2]
[353908419,1740128739770,-500.0,0.00014027,2]
[353908420,1740128739790,-516.36,0.00014027,2]
[353908421,1740128739810,-11701.41,0.00014027,2]
[353908422,1740128739830,-792.72,0.00014027,2]
[353908423,1740128739850,-1331.03,0.00014027,2]
[353908424,1740128739872,-500.0,0.00014027,2]
[353908425,1740128739893,-636.24,0.00014027,2]
[353908426,1740128739914,-2382.34,0.00014027,2]
[353908427,1740128739935,-500.0,0.00014027,2]
[353908428,1740128739955,-500.0,0.00014027,2]
[353908429,1740128739975,-4762.24,0.00014027,2]
[353908430,1740128739997,-500.0,0.00014027,2]
[353908431,1740128740019,-1649.32,0.00014027,2]
[353908432,1740128740040,-142.78818005,0.00014059,2]
[353908434,1740128834099,-500.0,0.00011588,2]
[353908435,1740128834120,-166.74409853,0.00013598,2]
[353908436,1740128834141,-300.0,0.00013697,2]
[353908437,1740128834163,-500.0,0.00013698,2]
[353908438,1740128834183,-500.0,0.00013698,2]
[353908439,1740128834316,-1032.54,0.00013698,2]
[353908440,1740128834340,-566.58,0.00013698,2]
[353908441,1740128834362,-500.0,0.00013698,2]
[353908442,1740128834384,-500.0,0.00013698,2]
[353908443,1740128834405,-500.0,0.00013698,2]
[353908444,1740128834426,-500.0,0.00013698,2]
[353908445,1740128834447,-469.12315619,0.00013698,2]
[353908446,1740128834469,-519.52,0.00013698,2]
[353908447,1740128834489,-2294.44,0.00013698,2]
[353908448,1740128834509,-500.0,0.00013698,2]
[353908449,1740128834532,-500.0,0.00013698,2]
[353908450,1740128834553,-500.0,0.00013698,2]
[353908451,1740128834575,-299.46,0.00013698,2]
[353908452,1740128834603,-500.0,0.00013698,2]
[353908453,1740128834624,-371.39732752,0.00013698,2]
[353908454,1740128834650,-606.55,0.00013698,2]
[353908455,1740128834676,-249.429418,0.00013699,2]
[353908456,1740128834697,-13000.04581193,0.00013738,2]
[353908457,1740128834719,-500.0,0.0001378,2]
[353908458,1740128834741,-500.0,0.0001378,2]
[353908459,1740128834764,-1032.54,0.0001378,2]
[353908460,1740128834786,-566.58,0.0001378,2]
[353908461,1740128834808,-500.0,0.0001378,2]
[353908462,1740128834829,-519.52,0.0001378,2]
[353908463,1740128834850,-2294.44,0.0001378,2]
[353908464,1740128834871,-500.0,0.0001378,2]
[353908465,1740128834891,-500.0,0.0001378,2]
[353908466,1740128834911,-606.55,0.0001378,2]
[353908467,1740128834932,-500.0,0.00013863,2]
[353908468,1740128834953,-500.0,0.00013863,2]
[353908469,1740128834978,-1032.54,0.00013863,2]
[353908470,1740128834998,-566.58,0.00013863,2]
[353908471,1740128835019,-500.0,0.00013863,2]
[353908472,1740128835040,-519.52,0.00013863,2]
[353908473,1740128835066,-2294.44,0.00013863,2]
[353908474,1740128835086,-500.0,0.00013863,2]
[353908475,1740128835107,-500.0,0.00013863,2]
[353908476,1740128835128,-606.55,0.00013863,2]
[353908477,1740128835148,-1654.4562888,0.00013915,2]
[353908478,1740128835168,-500.0,0.00013945,2]
[353908479,1740128835189,-500.0,0.00013945,2]
[353908480,1740128835215,-1032.54,0.00013945,2]
[353908481,1740128835236,-566.58,0.00013945,2]
[353908482,1740128835257,-500.0,0.00013945,2]
[353908483,1740128835279,-519.52,0.00013945,2]
[353908484,1740128835299,-2294.44,0.00013945,2]
[353908485,1740128835320,-500.0,0.00013945,2]
[353908486,1740128835341,-8990.31413654,0.00013945,4]
[353908487,1740128835364,-500.0,0.00013945,2]
[353908488,1740128835385,-606.55,0.00013945,2]
[353908489,1740128835408,-307.4100039,0.00014,2]
[353908490,1740128835429,-3000.0,0.00014009,2]
[353908491,1740128835451,-954.03244868,0.00014009,2]
[353908492,1740128835473,-500.0,0.00014027,2]
[353908493,1740128835497,-500.0,0.00014027,2]
[353908494,1740128835518,-1032.54,0.00014027,2]
[353908495,1740128835541,-566.58,0.00014027,2]
[353908496,1740128835561,-500.0,0.00014027,2]
[353908497,1740128835584,-519.52,0.00014027,2]
[353908498,1740128835609,-2294.44,0.00014027,2]
[353908499,1740128835630,-334.88622591,0.00014027,2]
[353908500,1740128835651,-500.0,0.00014027,2]
[353908501,1740128835673,-606.55,0.00014027,2]
[353908502,1740128835694,-357.21181995,0.00014059,2]
[353908503,1740128835714,-500.0,0.00014059,2]
[353908504,1740128835734,-309.5567162,0.000141,2]
[353908505,1740128835755,-308.5185246,0.000141,2]
[353908506,1740128835775,-998.80143827,0.00014108,2]
[353908507,1740128835795,-151.0,0.00014109,2]
[353908508,1740128835815,-500.0,0.00014109,2]
[353908509,1740128835836,-500.0,0.00014109,2]
[353908510,1740128835857,-697.03,0.00014109,2]
[353908511,1740128835876,-776.14,0.00014109,2]
[353908512,1740128835896,-513.11,0.00014109,2]
[353908513,1740128835917,-558.68,0.00014109,2]
[353908514,1740128835938,-500.0,0.00014109,2]
[353908515,1740128835959,-500.0,0.00014109,2]
[353908516,1740128835982,-3365.24,0.00014109,2]
[353908517,1740128836002,-500.0,0.00014109,2]
[353908518,1740128836024,-6309.07,0.00014109,2]
[353908519,1740128836046,-1265.24,0.00014109,2]
[353908520,1740128836067,-1389.74,0.00014109,2]
[353908521,1740128836088,-780.09,0.00014109,2]
[353908522,1740128836109,-633.01,0.00014109,2]
[353908523,1740128836132,-500.0,0.00014109,2]
[353908524,1740128836154,-500.0,0.00014109,2]
[353908525,1740128836177,-500.0,0.00014109,2]
[353908526,1740128836200,-516.36,0.00014109,2]
[353908527,1740128836222,-11701.41,0.00014109,2]
[353908528,1740128836244,-792.72,0.00014109,2]
[353908529,1740128836266,-1331.03,0.00014109,2]
[353908530,1740128836292,-500.0,0.00014109,2]
[353908531,1740128836315,-636.24,0.00014109,2]
[353908532,1740128836336,-2382.34,0.00014109,2]
[353908533,1740128836359,-500.0,0.00014109,2]
[353908534,1740128836381,-500.0,0.00014109,2]
[353908535,1740128836403,-4762.24,0.00014109,2]
[353908536,1740128836427,-500.0,0.00014109,2]
[353908537,1740128836449,-1649.32,0.00014109,2]
[353908538,1740128836470,-500.0,0.00014109,2]
[353908539,1740128836492,-500.0,0.00014109,2]
[353908540,1740128836515,-1032.54,0.00014109,2]
[353908541,1740128836536,-566.58,0.00014109,2]
[353908542,1740128836557,-500.0,0.00014109,2]
[353908543,1740128836581,-519.52,0.00014109,2]
[353908544,1740128836608,-2294.44,0.00014109,2]
[353908545,1740128836631,-500.0,0.00014109,2]
[353908546,1740128836652,-606.55,0.00014109,2]
[353908547,1740128836672,-500.96222818,0.00014137,2]
[353908548,1740128836692,-500.0,0.00014173,2]
[353908549,1740128836713,-500.0,0.00014173,2]
[353908550,1740128836734,-500.0,0.00014173,2]
[353908551,1740128836755,-500.0,0.00014173,2]
[353908552,1740128836776,-500.0,0.00014173,2]
[353908553,1740128836798,-500.0,0.00014191,2]
[353908554,1740128836921,-500.0,0.00014191,2]
[353908555,1740128836942,-697.03,0.00014191,2]
[353908556,1740128836966,-776.14,0.00014191,2]
[353908557,1740128836987,-513.11,0.00014191,2]
[353908558,1740128837009,-558.68,0.00014191,2]
[353908559,1740128837032,-500.0,0.00014191,2]
[353908560,1740128837054,-500.0,0.00014191,2]
[353908561,1740128837077,-3365.24,0.00014191,2]
[353908562,1740128837098,-500.0,0.00014191,2]
[353908563,1740128837125,-6309.07,0.00014191,2]
[353908564,1740128837158,-1265.24,0.00014191,2]
[353908565,1740128837184,-1389.74,0.00014191,2]
[353908566,1740128837207,-780.09,0.00014191,2]
[353908567,1740128837229,-633.01,0.00014191,2]
[353908568,1740128837250,-500.0,0.00014191,2]
[353908569,1740128837272,-500.0,0.00014191,2]
[353908570,1740128837295,-500.0,0.00014191,2]
[353908571,1740128837317,-516.36,0.00014191,2]
[353908572,1740128837338,-11701.41,0.00014191,2]
[353908573,1740128837361,-792.72,0.00014191,2]
[353908574,1740128837382,-1331.03,0.00014191,2]
[353908575,1740128837405,-500.0,0.00014191,2]
[353908576,1740128837426,-636.24,0.00014191,2]
[353908577,1740128837448,-2382.34,0.00014191,2]
[353908578,1740128837468,-500.0,0.00014191,2]
[353908579,1740128837489,-500.0,0.00014191,2]
[353908580,1740128837511,-4762.24,0.00014191,2]
[353908581,1740128837532,-500.0,0.00014191,2]
[353908582,1740128837554,-1649.32,0.00014191,2]
[353908583,1740128837576,-500.0,0.00014191,2]
[353908584,1740128837601,-500.0,0.00014191,2]
[353908585,1740128837624,-1032.54,0.00014191,2]
[353908586,1740128837646,-566.58,0.00014191,2]
[353908587,1740128837668,-519.52,0.00014191,2]
[353908588,1740128837691,-2294.44,0.00014191,2]
[353908589,1740128837712,-540.41816184,0.00014191,2]
[353908590,1740128837733,-606.55,0.00014191,2]
[353908591,1740128837755,-586.00859813,0.00014198,2]
[353908592,1740128837775,-64644.65615804,0.00014199,2]
[353908593,1740128837798,-117249.59259784,0.000142,5]
[353908594,1740128837819,-501.20460462,0.000142,5]
[353908595,1740128837840,-198.0,0.000142,14]
[353908596,1740128837860,-212.750623,0.000142,2]
[353908597,1740128837881,-212.750623,0.000142,2]
[353908598,1740128837902,-151.0,0.000142,2]
[353908599,1740128837923,-151.229525,0.000142,2]
[353908600,1740128837945,-151.0,0.000142,2]
[353908601,1740128837965,-314.0,0.000142,2]
[353908602,1740128837985,-166.0,0.000142,2]
[353908603,1740128838008,-167.0,0.000142,2]
[353908604,1740128838033,-307.22528661,0.000142,2]
[353908605,1740128838053,-166.0,0.000142,2]
[353908606,1740128838075,-166.0,0.000142,2]
[353908607,1740128838096,-252.0,0.000142,2]
[353908608,1740128838118,-349.0,0.000142,2]
[353908609,1740128838140,-349.0,0.000142,2]
[353908610,1740128838162,-314.0,0.000142,2]
[353908611,1740128838183,-349.0,0.000142,2]
[353908612,1740128838204,-314.0,0.000142,2]
[353908613,1740128838226,-349.0,0.000142,2]
[353908614,1740128838246,-314.0,0.000142,2]
[353908615,1740128838268,-349.0,0.000142,2]
[353908616,1740128838289,-314.0,0.000142,2]
[353908617,1740128838311,-349.0,0.000142,2]
[353908618,1740128838332,-314.0,0.000142,2]
[353908619,1740128838353,-349.0,0.000142,2]
[353908620,1740128838376,-314.0,0.000142,2]
[353908621,1740128838398,-349.0,0.000142,2]
[353908622,1740128838419,-314.0,0.000142,2]
[353908623,1740128838441,-349.0,0.000142,2]
[353908624,1740128838466,-314.0,0.000142,2]
[353908625,1740128838490,-349.0,0.000142,2]
[353908626,1740128838512,-314.0,0.000142,2]
[353908627,1740128838540,-349.0,0.000142,2]
[353908628,1740128838563,-314.0,0.000142,2]
[353908629,1740128838588,-349.0,0.000142,2]
[353908630,1740128838614,-314.0,0.000142,2]
[353908631,1740128838637,-349.0,0.000142,2]
[353908632,1740128838661,-314.0,0.000142,2]
[353908633,1740128838683,-349.0,0.000142,2]
[353908634,1740128838704,-314.0,0.000142,2]
[353908635,1740128838727,-349.0,0.000142,2]
[353908636,1740128838747,-314.0,0.000142,2]
[353908637,1740128838770,-349.0,0.000142,2]
[353908638,1740128838792,-314.0,0.000142,2]
[353908639,1740128838813,-349.0,0.000142,2]
[353908640,1740128838835,-314.0,0.000142,2]
[353908641,1740128838857,-314.0,0.000142,2]
[353908642,1740128838880,-314.0,0.000142,2]
[353908643,1740128838901,-349.0,0.000142,2]
[353908644,1740128838925,-314.0,0.000142,2]
[353908645,1740128838948,-349.0,0.000142,2]
[353908646,1740128838971,-314.0,0.000142,2]
[353908647,1740128838995,-349.0,0.000142,2]
[353908648,1740128839018,-314.0,0.000142,2]
[353908649,1740128839043,-349.0,0.000142,2]
[353908650,1740128839067,-314.0,0.000142,2]
[353908651,1740128839093,-349.0,0.000142,2]
[353908652,1740128839117,-314.0,0.000142,2]
[353908653,1740128839139,-349.0,0.000142,2]
[353908654,1740128839162,-349.0,0.000142,2]
[353908655,1740128839184,-314.0,0.000142,2]
[353908656,1740128839208,-349.0,0.000142,2]
[353908657,1740128839232,-349.0,0.000142,2]
[353908658,1740128839257,-314.0,0.000142,2]
[353908659,1740128839282,-349.0,0.000142,2]
[353908660,1740128839308,-314.0,0.000142,2]
[353908661,1740128839339,-333.48221772,0.000142,2]
[353908662,1740128849107,-502.33055974,0.00013698,2]
[353908663,1740128849128,-502.16689917,0.00013698,2]
[353908664,1740128849150,-334.07552992,0.00013698,2]
[353908665,1740128849172,-2664.15,0.00013698,2]
[353908666,1740128849194,-2664.15,0.0001378,2]
[353908667,1740128849216,-2664.15,0.00013863,2]
[353908668,1740128849237,-2664.15,0.00013945,2]
[353908669,1740128849259,-2664.15,0.00014027,2]
[353908670,1740128849280,-2664.15,0.00014109,2]
[353908671,1740128849301,-2664.15,0.00014191,2]
[353908672,1740128849321,-15.51778228,0.000142,2]
[353908673,1740128849343,-314.0,0.000142,2]
[353908674,1740128849364,-349.0,0.000142,2]
[353908675,1740128849390,-314.0,0.000142,2]
[353908676,1740128849422,-349.0,0.000142,2]
[353908677,1740128849451,-314.0,0.000142,2]
[353908678,1740128849479,-349.0,0.000142,2]
[353908679,1740128849508,-274.64004479,0.000142,2]
[353908680,1740128849538,-349.0,0.000142,2]
[353908681,1740128849568,-349.0,0.000142,2]
[353908682,1740128849601,-349.0,0.000142,2]
[353908683,1740128849636,-349.0,0.000142,2]
[353908684,1740128849667,-349.0,0.000142,2]
[353908685,1740128849696,-349.0,0.000142,2]
[353908686,1740128849722,-349.0,0.000142,2]
[353908687,1740128849749,-349.0,0.000142,2]
[353908688,1740128849777,-349.0,0.000142,2]
[353908689,1740128849806,-349.0,0.000142,2]
[353908690,1740128849839,-349.0,0.000142,2]
[353908691,1740128849867,-349.0,0.000142,2]
[353908692,1740128849891,-349.0,0.000142,2]
[353908693,1740128849914,-349.0,0.000142,2]
[353908694,1740128849943,-438.10396898,0.000142,2]
[353908695,1740128849970,-166.7440985,0.00014205,2]
[353908696,1740128849995,-179.973181,0.0001421,5]
[353908697,1740128850022,-501.45983264,0.00014273,2]
[353908698,1740128850048,-556.84553908,0.00014273,2]
[353908699,1740128850071,-500.0,0.00014273,2]
[353908700,1740128850100,-697.03,0.00014273,2]
[353908701,1740128850126,-776.14,0.00014273,2]
[353908702,1740128850151,-513.11,0.00014273,2]
[353908703,1740128850175,-558.68,0.00014273,2]
[353908704,1740128850200,-500.0,0.00014273,2]
[353908705,1740128850226,-500.0,0.00014273,2]
[353908706,1740128850252,-500.0,0.00014273,2]
[353908707,1740128850277,-500.0,0.00014273,2]
[353908708,1740128850303,-299.64657635,0.00014273,2]
[353908709,1740128850328,-299.73452681,0.00014273,2]
[353908710,1740128850352,-216.01243458,0.00014273,2]
[353908711,1740128850378,-500.0,0.00014273,2]
[353908712,1740128850404,-500.0,0.00014273,2]
[353908713,1740128850431,-6309.07,0.00014273,2]
[353908714,1740128850456,-764.0,0.00014273,2]
[353908715,1740128850485,-1265.24,0.00014273,2]
[353908716,1740128850507,-514.0,0.00014273,2]
[353908717,1740128850528,-150.18,0.00014273,2]
[353908718,1740128850550,-1389.74,0.00014273,2]
[353908719,1740128850571,-500.0,0.00014273,2]
[353908720,1740128850597,-500.0,0.00014273,2]
[353908721,1740128850620,-780.09,0.00014273,2]
[353908722,1740128850643,-633.01,0.00014273,2]
[353908723,1740128850665,-500.0,0.00014273,2]
[353908724,1740128850690,-500.0,0.00014273,2]
[353908725,1740128850713,-500.0,0.00014273,2]
[353908726,1740128850736,-516.36,0.00014273,2]
[353908727,1740128850758,-11701.41,0.00014273,2]
[353908728,1740128850958,-792.72,0.00014273,2]
[353908729,1740128850981,-1331.03,0.00014273,2]
[353908730,1740128851004,-500.0,0.00014273,2]
[353908731,1740128851027,-636.24,0.00014273,2]
[353908732,1740128851049,-2382.34,0.00014273,2]
[353908733,1740128851072,-500.0,0.00014273,2]
[353908734,1740128851094,-500.0,0.00014273,2]
[353908735,1740128851117,-4762.24,0.00014273,2]
[353908736,1740128851140,-500.0,0.00014273,2]
[353908737,1740128851163,-1649.32,0.00014273,2]
[353908738,1740128851184,-500.0,0.00014273,2]
[353908739,1740128851205,-500.0,0.00014273,2]
[353908740,1740128851228,-1032.54,0.00014273,2]
[353908741,1740128851249,-566.58,0.00014273,2]
[353908742,1740128851271,-519.52,0.00014273,2]
[353908743,1740128851293,-2294.44,0.00014273,2]
[353908744,1740128851316,-606.55,0.00014273,2]
[353908745,1740128851338,-2664.15,0.00014273,2]
[353908746,1740128851360,-7438.69753278,0.00014274,2]
[353908747,1740128851381,-262.56703008,0.00014293,2]
[353908748,1740128851402,-743.144,0.00014327,2]
[353908749,1740128851423,-500.0,0.00014328,2]
[353908750,1740128851446,-636.13461265,0.00014355,2]
[353908751,1740128851468,-500.0,0.00014355,2]
[353908752,1740128851489,-500.0,0.00014355,2]
[353908753,1740128851512,-500.0,0.00014355,2]
[353908754,1740128851536,-500.0,0.00014355,2]
[353908755,1740128851556,-500.0,0.00014355,2]
[353908756,1740128851580,-481.28240097,0.00014355,2]
[353908757,1740128851606,-650.91898189,0.00014355,2]
[353908758,1740128851627,-500.0,0.00014355,2]
[353908759,1740128851648,-458.0,0.00014355,2]
[353908760,1740128851670,-212.750623,0.00014356,2]
[353908761,1740128851692,-212.750623,0.00014356,2]
[353908762,1740128851712,-151.0,0.00014356,2]
[353908763,1740128851733,-151.0,0.00014356,2]
[353908764,1740128851755,-500.0,0.00014356,2]
[353908765,1740128851776,-697.03,0.00014356,2]
[353908766,1740128851796,-776.14,0.00014356,2]
[353908767,1740128851817,-513.11,0.00014356,2]
[353908768,1740128851838,-558.68,0.00014356,2]
[353908769,1740128851859,-500.0,0.00014356,2]
[353908770,1740128851879,-500.0,0.00014356,2]
[353908771,1740128851901,-500.0,0.00014356,2]
[353908772,1740128851923,-6309.07,0.00014356,2]
[353908773,1740128851945,-1265.24,0.00014356,2]
[353908774,1740128851967,-1389.74,0.00014356,2]
[353908775,1740128851989,-780.09,0.00014356,2]
[353908776,1740128852010,-633.01,0.00014356,2]
[353908777,1740128852031,-500.0,0.00014356,2]
[353908778,1740128852052,-500.0,0.00014356,2]
[353908779,1740128852074,-500.0,0.00014356,2]
[353908780,1740128852096,-516.36,0.00014356,2]
[353908781,1740128852119,-7971.46064479,0.00014356,2]
[353908782,1740128853108,-623.0,0.000143,2]
[353908783,1740128853130,-3729.94935521,0.00014356,2]
[353908784,1740128853152,-792.72,0.00014356,2]
[353908785,1740128853174,-1331.03,0.00014356,2]
[353908786,1740128853196,-500.0,0.00014356,2]
[353908787,1740128853219,-636.24,0.00014356,2]
[353908788,1740128853240,-2382.34,0.00014356,2]
[353908789,1740128853263,-500.0,0.00014356,2]
[353908790,1740128853284,-500.0,0.00014356,2]
[353908791,1740128853307,-4762.24,0.00014356,2]
[353908792,1740128853329,-500.0,0.00014356,2]
[353908793,1740128853352,-1649.32,0.00014356,2]
[353908794,1740128853375,-500.0,0.00014356,2]
[353908795,1740128853396,-500.0,0.00014356,2]
[353908796,1740128853419,-1032.54,0.00014356,2]
[353908797,1740128853440,-566.58,0.00014356,2]
[353908798,1740128853460,-519.52,0.00014356,2]
[353908799,1740128853483,-89.32519079,0.00014356,2]
[353908800,1740128921434,1000.0,0.00019,120]
[353908851,1740129032440,-500.0,0.00011588,2]
[353908853,1740129032450,-166.7440985,0.0001368,2]
[353908855,1740129032459,-300.0,0.00013697,2]
[353908857,1740129032468,-502.15825082,0.00013698,2]
[353908859,1740129032477,-503.02498034,0.00013698,2]
[353908861,1740129032487,-896.21,0.00013698,2]
[353908863,1740129032496,-505.6337379,0.00013698,2]
[353908865,1740129032505,-500.0,0.00013698,2]
[353908867,1740129032514,-508.2321677,0.00013698,2]
[353908869,1740129032523,-984.4,0.00013698,2]
[353908871,1740129032532,-4468.92,0.00013698,2]
[353908873,1740129032542,-500.0,0.00013698,2]
[353908874,1740129032551,-501.89946927,0.00013698,2]
[353908876,1740129032561,-8207.85,0.00013698,2]
[353908878,1740129032569,-500.0,0.00013698,2]
[353908881,1740129032579,-500.0,0.00013698,2]
[353908883,1740129032588,-552.57,0.00013698,2]
[353908885,1740129032597,-500.0,0.00013698,2]
[353908887,1740129032606,-504.34217252,0.00013698,2]
[353908891,1740129032615,-500.0,0.00013698,2]
[353908894,1740129032624,-337.99117694,0.00013698,2]
[353908897,1740129032634,-500.0,0.00013698,2]
[353908900,1740129032646,-528.48,0.00013698,2]
[353908903,1740129032659,-500.0,0.00013698,2]
[353908906,1740129032668,-501.50690427,0.00013698,2]
[353908909,1740129032677,-887.35,0.00013698,2]
[353908912,1740129032686,-500.0,0.00013698,2]
[353908915,1740129032695,-511.83720458,0.00013698,2]
[353908918,1740129032704,-500.0,0.00013698,2]
[353908921,1740129032713,-502.30448695,0.00013698,2]
[353908924,1740129032722,-502.36137601,0.00013698,2]
[353908927,1740129032731,-1588.23,0.00013698,2]
[353908930,1740129032740,-503.68811393,0.00013698,2]
[353908933,1740129032749,-502.55062878,0.00013698,2]
[353908936,1740129032758,-238.45462893,0.00013698,2]
[353908939,1740129032767,-502.68291101,0.00013698,2]
[353908942,1740129032776,-500.0,0.00013698,2]
[353908945,1740129032785,-502.30954638,0.00013698,2]
[353908948,1740129032794,-500.0,0.00013698,2]
[353908951,1740129032803,-501.26518634,0.00013698,2]
[353908953,1740129032811,-500.0,0.00013698,2]
[353908957,1740129032820,-501.51327035,0.00013698,2]
[353908960,1740129032830,-662.99,0.00013698,2]
[353908963,1740129032839,-500.0,0.00013698,2]
[353908965,1740129032848,-500.0,0.00013698,2]
[353908968,1740129032857,-501.78541349,0.00013698,2]
[353908970,1740129032866,-3174.83,0.00013698,2]
[353908973,1740129032875,-500.0,0.00013698,2]
[353908976,1740129032883,-549.77,0.00013698,2]
[353908978,1740129032892,-501.38811267,0.00013698,2]
[353908980,1740129032902,-500.0,0.00013698,2]
[353908982,1740129032911,-500.0,0.00013698,2]
[353908984,1740129032920,-502.67921079,0.00013698,2]
[353908986,1740129032930,-500.0,0.00013698,2]
[353908988,1740129032940,-500.0,0.00013698,2]
[353908990,1740129032949,-500.0,0.00013737,2]
[353908992,1740129032958,-754.02,0.00013737,2]
[353908994,1740129032969,-1099.55,0.00013779,2]
[353908996,1740129032979,-513.3,0.00013779,2]
[353908998,1740129032988,-500.0,0.00013779,2]
[353909000,1740129032998,-1525.91,0.00013779,2]
[353909002,1740129033007,-896.21,0.0001378,2]